fUST/lending_fUST_20240125
["ID","MTS","AMOUNT","RATE_DAILY","PERIOD"]
[312654319,1706138136125,-500.0,0.00050136,120]
[312654320,1706138136149,-500.0,0.00050136,120]
[312654321,1706138136174,-500.0,0.00050136,120]
[312654322,1706138136197,-500.0,0.00050136,120]
[312654323,1706138136221,-541.66,0.00050136,120]
[312654324,1706138136244,-500.0,0.00050136,120]
[312654325,1706138136273,-500.0,0.00050136,120]
[312654326,1706138136298,-735.65,0.00050136,120]
[312654327,1706138136322,-554.29,0.00050136,120]
[312654328,1706138136347,-500.0,0.00050136,120]
[312654329,1706138136370,-500.0,0.00050136,120]
[312654330,1706138136394,-944.82,0.00050136,120]
[312654331,1706138136418,-500.0,0.00050136,120]
[312654332,1706138136442,-1084.21,0.00050136,120]
[312654333,1706138136466,-500.0,0.00050136,120]
[312654334,1706138136491,-516.4,0.00050136,120]
[312654335,1706138136515,-597.63,0.00050136,120]
[312654336,1706138136541,-500.0,0.00050136,120]
[312654337,1706138136565,-576.59,0.00050136,120]
[312654338,1706138136590,-507.27597369,0.00050136,120]
[312654339,1706138136613,-500.0,0.00050136,120]
[312654340,1706138136637,-500.0,0.00050136,120]
[312654341,1706138136660,-500.0,0.00050136,120]
[312654342,1706138136684,-500.0,0.00050136,120]
[312654343,1706138136708,-500.0,0.00050136,120]
[312654344,1706138136732,-152.20431386,0.00050312,60]
[312654345,1706138136754,-500.0,0.0005041,60]
[312654346,1706138136777,-500.0,0.0005041,120]
[312654347,1706138136801,-600.0,0.0005041,120]
[312654348,1706138136825,-171.65091629,0.0005041,120]
[312654349,1706138136848,-500.0,0.0005041,120]
[312654350,1706138136873,-238.47488229,0.0005041,120]
[312654351,1706138136895,-500.0,0.0005041,120]
[312654352,1706138136920,-521.65,0.0005041,120]
[312654353,1706138136943,-500.0,0.0005041,120]
[312654354,1706138136966,-500.0,0.0005041,120]
[312654355,1706138136989,-1611.84,0.0005041,120]
[312654356,1706138137013,-500.0,0.0005041,120]
[312654357,1706138137037,-500.0,0.0005041,120]
[312654358,1706138137060,-500.0,0.0005041,120]
[312654359,1706138137084,-500.0,0.0005041,120]
[312654360,1706138137107,-500.0,0.0005041,120]
[312654361,1706138137131,-500.0,0.0005041,120]
[312654362,1706138137155,-500.0,0.0005041,120]
[312654363,1706138137179,-500.0,0.0005041,120]
[312654364,1706138137203,-500.0,0.0005041,120]
[312654366,1706138137227,-500.0,0.0005041,120]
[312654367,1706138137250,-560.55,0.0005041,120]
[312654368,1706138137277,-500.0,0.0005041,120]
[312654369,1706138137300,-500.0,0.0005041,120]
[312654370,1706138137323,-500.0,0.0005041,120]
[312654371,1706138137346,-500.0,0.0005041,120]
[312654372,1706138137370,-500.0,0.0005041,120]
[312654373,1706138137393,-500.0,0.0005041,120]
[312654374,1706138137418,-500.0,0.0005041,120]
[312654375,1706138137441,-500.0,0.0005041,120]
[312654376,1706138137465,-500.0,0.0005041,120]
[312654377,1706138137488,-821.7,0.0005041,120]
[312654378,1706138137511,-500.0,0.0005041,120]
[312654379,1706138137535,-542.1,0.0005041,120]
[312654380,1706138137558,-674.55,0.0005041,120]
[312654381,1706138137581,-500.0,0.0005041,120]
[312654382,1706138137605,-500.0,0.0005041,120]
[312654383,1706138137628,-521.05949553,0.0005041,120]
[312654384,1706138137652,-500.0,0.0005041,120]
[312654385,1706138137676,-576.2,0.0005041,120]
[312654386,1706138137810,-500.0,0.0005041,120]
[312654387,1706138137835,-500.0,0.0005041,120]
[312654388,1706138137859,-500.0,0.0005041,120]
[312654389,1706138137883,-500.0,0.0005041,120]
[312654390,1706138137906,-500.0,0.0005041,120]
[312654391,1706138137930,-500.0,0.0005041,120]
[312654392,1706138137954,-500.0,0.0005041,120]
[312654393,1706138137978,-500.0,0.0005041,120]
[312654394,1706138138002,-500.0,0.0005041,120]
[312654395,1706138138027,-500.0,0.0005041,120]
[312654396,1706138138052,-500.0,0.0005041,120]
[312654397,1706138138078,-708.29,0.0005041,120]
[312654398,1706138138103,-500.0,0.0005041,120]
[312654399,1706138138128,-500.0,0.0005041,120]
[312654400,1706138138153,-500.0,0.0005041,120]
[312654401,1706138138178,-500.0,0.0005041,120]
[312654402,1706138138202,-500.0,0.0005041,120]
[312654403,1706138138225,-731.74,0.0005041,120]
[312654404,1706138138249,-500.0,0.0005041,120]
[312654405,1706138138273,-628.3,0.0005041,120]
[312654406,1706138138296,-500.0,0.0005041,120]
[312654407,1706138138323,-500.0,0.0005041,120]
[312654408,1706138138349,-502.22029603,0.0005041,120]
[312654409,1706138138372,-511.9099318,0.0005041,120]
[312654410,1706138138397,-500.0,0.0005041,120]
[312654411,1706138138422,-500.0,0.0005041,120]
[312654412,1706138138448,-623.57,0.0005041,120]
[312654413,1706138138471,-504.96,0.0005041,120]
[312654414,1706138138494,-500.0,0.0005041,120]
[312654415,1706138138517,-581.35418192,0.0005041,120]
[312654416,1706138138541,-500.0,0.0005041,120]
[312654417,1706138138564,-500.0,0.0005041,120]
[312654418,1706138138587,-500.0,0.0005041,120]
[312654419,1706138138611,-541.2,0.0005041,120]
[312654420,1706138138633,-500.0,0.0005041,120]
[312654421,1706138138657,-621.03,0.0005041,120]
[312654422,1706138138680,-500.0,0.0005041,120]
[312654423,1706138138704,-500.0,0.0005041,120]
[312654424,1706138138728,-519.59,0.0005041,120]
[312654425,1706138138754,-500.0,0.0005041,120]
[312654426,1706138138777,-150.0,0.0005041,120]
[312654427,1706138138801,-502.57502426,0.0005041,120]
[312654428,1706138138825,-646.43,0.0005041,120]
[312654429,1706138138849,-500.0,0.0005041,120]
[312654430,1706138138874,-212.90159013,0.0005041,120]
[312654431,1706138138897,-500.0,0.0005041,120]
[312654432,1706138138920,-500.0,0.0005041,120]
[312654433,1706138138943,-500.0,0.0005041,120]
[312654434,1706138138966,-500.0,0.0005041,120]
[312654435,1706138138989,-1064.19,0.0005041,120]
[312654436,1706138139014,-500.0,0.0005041,120]
[312654437,1706138139038,-500.0,0.0005041,120]
[312654438,1706138139066,-500.0,0.0005041,120]
[312654439,1706138139091,-593.16,0.0005041,120]
[312654440,1706138139119,-179.18675764,0.0005041,120]
[312654441,1706138139146,-198.37676431,0.0005041,120]
[312654442,1706138139171,-500.0,0.0005041,120]
[312654443,1706138139197,-500.0,0.0005041,120]
[312654444,1706138139224,-1350.89,0.0005041,120]
[312654445,1706138139249,-1635.66,0.0005041,120]
[312654446,1706138139276,-2252.64,0.0005041,120]
[312654447,1706138139303,-318.34496394,0.0005041,120]
[312654448,1706138139335,-500.0,0.0005041,120]
[312654449,1706138139361,-500.0,0.0005041,120]
[312654450,1706138139387,-500.0,0.0005041,120]
[312654451,1706138139411,-502.75,0.0005041,120]
[312654452,1706138139435,-500.0,0.0005041,120]
[312654453,1706138139458,-840.87,0.0005041,120]
[312654454,1706138139482,-1320.33,0.0005041,120]
[312654455,1706138139507,-500.0,0.0005041,120]
[312654456,1706138139532,-983.25,0.0005041,120]
[312654457,1706138139637,-500.0,0.0005041,120]
[312654458,1706138139663,-500.0,0.0005041,120]
[312654459,1706138139687,-3361.98,0.0005041,120]
[312654460,1706138139711,-500.0,0.0005041,120]
[312654461,1706138139735,-430.9010066,0.0005041,120]
[312654462,1706138139760,-500.0,0.0005041,120]
[312654463,1706138139784,-500.0,0.0005041,120]
[312654464,1706138139807,-500.0,0.0005041,120]
[312654465,1706138139830,-502.70828904,0.0005041,120]
[312654466,1706138139853,-500.0,0.0005041,120]
[312654467,1706138139878,-933.63,0.0005041,120]
[312654468,1706138139903,-500.0,0.0005041,120]
[312654469,1706138139928,-500.0,0.0005041,120]
[312654470,1706138139951,-500.0,0.0005041,120]
[312654471,1706138139975,-569.81,0.0005041,120]
[312654472,1706138139998,-519.09,0.0005041,120]
[312654473,1706138140023,-771.42,0.0005041,120]
[312654474,1706138140047,-500.0,0.0005041,120]
[312654475,1706138140071,-500.0,0.0005041,120]
[312654476,1706138140094,-500.0,0.0005041,60]
[312654477,1706138140118,-500.0,0.0005041,120]
[312654478,1706138140141,-597.33,0.0005041,120]
[312654479,1706138140165,-500.0,0.0005041,120]
[312654480,1706138140189,-500.0,0.0005041,120]
[312654481,1706138140213,-500.0,0.0005041,120]
[312654482,1706138140238,-679.43,0.0005041,120]
[312654483,1706138140263,-500.0,0.0005041,120]
[312654484,1706138140293,-500.0,0.0005041,120]
[312654485,1706138140317,-500.0,0.0005041,120]
[312654486,1706138140341,-500.0,0.0005041,120]
[312654487,1706138140365,-500.0,0.0005041,120]
[312654488,1706138140389,-541.66,0.0005041,120]
[312654489,1706138140414,-500.0,0.0005041,120]
[312654490,1706138140438,-500.0,0.0005041,120]
[312654491,1706138140462,-735.65,0.0005041,120]
[312654492,1706138140486,-554.29,0.0005041,120]
[312654493,1706138140509,-500.0,0.0005041,120]
[312654494,1706138140533,-500.0,0.0005041,120]
[312654495,1706138140557,-944.82,0.0005041,120]
[312654496,1706138140581,-500.0,0.0005041,120]
[312654497,1706138140605,-1084.21,0.0005041,120]
[312654498,1706138140629,-500.0,0.0005041,120]
[312654499,1706138140652,-516.4,0.0005041,120]
[312654500,1706138140675,-597.63,0.0005041,120]
[312654501,1706138140699,-500.0,0.0005041,120]
[312654502,1706138140723,-576.59,0.0005041,120]
[312654503,1706138140748,-500.0,0.0005041,120]
[312654504,1706138140771,-276.67535721,0.0005041,120]
[312654505,1706138140794,-500.0,0.0005041,120]
[312654506,1706138140819,-500.0,0.0005041,120]
[312654507,1706138140842,-500.0,0.0005041,120]
[312654508,1706138140865,-500.0,0.00050684,60]
[312654509,1706138140889,-500.0,0.00050684,120]
[312654510,1706138140913,-600.0,0.00050684,120]
[312654511,1706138140936,-500.0,0.00050684,120]
[312654512,1706138140962,-500.0,0.00050684,120]
[312654513,1706138140986,-521.65,0.00050684,120]
[312654514,1706138141012,-502.65864663,0.00050684,120]
[312654515,1706138141037,-500.0,0.00050684,120]
[312654516,1706138141062,-1611.84,0.00050684,120]
[312654517,1706138141086,-500.0,0.00050684,120]
[312654518,1706138141109,-500.0,0.00050684,120]
[312654519,1706138141133,-500.0,0.00050684,120]
[312654520,1706138141156,-500.0,0.00050684,120]
[312654521,1706138141181,-500.0,0.00050684,120]
[312654522,1706138141205,-500.0,0.00050684,120]
[312654523,1706138141228,-500.0,0.00050684,120]
[312654524,1706138141252,-500.0,0.00050684,120]
[312654525,1706138141281,-500.0,0.00050684,120]
[312654526,1706138141407,-500.0,0.00050684,120]
[312654527,1706138141431,-560.55,0.00050684,120]
[312654528,1706138141457,-500.0,0.00050684,120]
[312654529,1706138141482,-500.0,0.00050684,120]
[312654530,1706138141506,-500.0,0.00050684,120]
[312654531,1706138141530,-500.0,0.00050684,120]
[312654532,1706138141554,-500.0,0.00050684,120]
[312654533,1706138141579,-500.0,0.00050684,120]
[312654534,1706138141603,-500.0,0.00050684,120]
[312654535,1706138141627,-500.0,0.00050684,120]
[312654536,1706138141651,-500.0,0.00050684,120]
[312654537,1706138141674,-821.7,0.00050684,120]
[312654538,1706138141699,-500.0,0.00050684,120]
[312654539,1706138141722,-542.1,0.00050684,120]
[312654540,1706138141746,-674.55,0.00050684,120]
[312654541,1706138141769,-500.0,0.00050684,120]
[312654542,1706138141792,-500.0,0.00050684,120]
[312654543,1706138141815,-500.0,0.00050684,120]
[312654544,1706138141839,-576.2,0.00050684,120]
[312654545,1706138141862,-500.0,0.00050684,120]
[312654546,1706138141886,-500.0,0.00050684,120]
[312654547,1706138141914,-500.0,0.00050684,120]
[312654548,1706138141940,-450.45400491,0.00050684,120]
[312654549,1706138141967,-500.0,0.00050684,120]
[312654550,1706138141991,-500.0,0.00050684,120]
[312654551,1706138142016,-500.0,0.00050684,120]
[312654552,1706138142040,-500.0,0.00050684,120]
[312654553,1706138142067,-500.0,0.00050684,120]
[312654554,1706138142091,-312.59879336,0.00050684,120]
[312654555,1706138142115,-708.29,0.00050684,120]
[312654556,1706138142138,-500.0,0.00050684,120]
[312654557,1706138142162,-500.0,0.00050684,120]
[312654558,1706138142187,-500.0,0.00050684,120]
[312654559,1706138142213,-500.0,0.00050684,120]
[312654560,1706138142240,-500.0,0.00050684,120]
[312654561,1706138142266,-731.74,0.00050684,120]
[312654562,1706138142289,-500.0,0.00050684,120]
[312654563,1706138142313,-628.3,0.00050684,120]
[312654564,1706138142337,-500.0,0.00050684,120]
[312654565,1706138142361,-500.0,0.00050684,120]
[312654566,1706138142386,-500.0,0.00050684,120]
[312654567,1706138142410,-500.0,0.00050684,120]
[312654568,1706138142434,-504.96,0.00050684,120]
[312654569,1706138142459,-623.57,0.00050684,120]
[312654570,1706138142482,-500.0,0.00050684,120]
[312654571,1706138142506,-500.0,0.00050684,120]
[312654572,1706138142529,-277.21659273,0.00050684,120]
[312654573,1706138142553,-500.0,0.00050684,120]
[312654574,1706138142577,-541.2,0.00050684,120]
[312654575,1706138142602,-500.0,0.00050684,120]
[312654576,1706138142627,-621.03,0.00050684,120]
[312654577,1706138142651,-500.0,0.00050684,120]
[312654578,1706138142676,-500.0,0.00050684,120]
[312654579,1706138142700,-519.59,0.00050684,120]
[312654580,1706138142723,-500.0,0.00050684,120]
[312654581,1706138142748,-150.0,0.00050684,120]
[312654582,1706138142772,-646.43,0.00050684,120]
[312654583,1706138142795,-500.0,0.00050684,120]
[312654584,1706138142818,-500.0,0.00050684,120]
[312654585,1706138142842,-500.0,0.00050684,120]
[312654586,1706138142866,-500.0,0.00050684,120]
[312654587,1706138142890,-500.0,0.00050684,120]
[312654588,1706138142914,-1064.19,0.00050684,120]
[312654589,1706138142939,-495.62504959,0.00050684,120]
[312654590,1706138142964,-500.0,0.00050684,120]
[312654591,1706138142989,-500.0,0.00050684,120]
[312654592,1706138143100,-593.16,0.00050684,120]
[312654593,1706138143125,-500.0,0.00050684,120]
[312654594,1706138143150,-500.0,0.00050684,120]
[312654595,1706138143175,-325.19733966,0.00050684,120]
[312654596,1706138148923,-500.0,0.00049315,120]
[312654597,1706138148950,-500.0,0.00049589,120]
[312654598,1706138148978,-500.0,0.00049863,120]
[312654599,1706138149005,-500.0,0.00050136,120]
[312654600,1706138149029,-500.0,0.0005041,120]
[312654601,1706138149054,-1025.69266034,0.00050684,120]
[312654602,1706138149078,-1635.66,0.00050684,120]
[312654603,1706138149102,-2252.64,0.00050684,120]
[312654604,1706138149126,-341.66194997,0.00050684,120]
[312654605,1706138149150,-500.0,0.00050684,120]
[312654606,1706138149173,-500.0,0.00050684,120]
[312654607,1706138149198,-502.75,0.00050684,120]
[312654608,1706138149222,-840.87,0.00050684,120]
[312654609,1706138149246,-1320.33,0.00050684,120]
[312654610,1706138149271,-983.25,0.00050684,120]
[312654611,1706138149295,-500.0,0.00050684,120]
[312654612,1706138149318,-500.0,0.00050684,120]
[312654613,1706138149343,-3361.98,0.00050684,120]
[312654614,1706138149368,-500.0,0.00050684,120]
[312654615,1706138149392,-500.0,0.00050684,120]
[312654616,1706138149415,-500.0,0.00050684,120]
[312654617,1706138149439,-500.0,0.00050684,120]
[312654618,1706138149463,-500.0,0.00050684,120]
[312654619,1706138149488,-933.63,0.00050684,120]
[312654620,1706138149511,-500.0,0.00050684,120]
[312654621,1706138149535,-500.0,0.00050684,120]
[312654622,1706138149558,-500.0,0.00050684,120]
[312654623,1706138149583,-569.81,0.00050684,120]
[312654624,1706138149608,-519.09,0.00050684,120]
[312654625,1706138149631,-771.42,0.00050684,120]
[312654626,1706138149656,-500.0,0.00050684,120]
[312654627,1706138149762,-500.0,0.00050684,120]
[312654628,1706138149786,-500.0,0.00050684,60]
[312654629,1706138149811,-500.0,0.00050684,120]
[312654630,1706138149835,-597.33,0.00050684,120]
[312654631,1706138149859,-500.0,0.00050684,120]
[312654632,1706138149883,-500.0,0.00050684,120]
[312654633,1706138149906,-500.0,0.00050684,120]
[312654634,1706138149930,-679.43,0.00050684,120]
[312654635,1706138149954,-500.0,0.00050684,120]
[312654636,1706138149978,-500.0,0.00050684,120]
[312654637,1706138150002,-500.0,0.00050684,120]
[312654638,1706138150026,-500.0,0.00050684,120]
[312654639,1706138150051,-500.0,0.00050684,120]
[312654640,1706138150075,-541.66,0.00050684,120]
[312654641,1706138150098,-500.0,0.00050684,120]
[312654642,1706138150123,-175.92502424,0.00050684,120]
[312654643,1706138150148,-735.65,0.00050684,120]
[312654644,1706138150172,-554.29,0.00050684,120]
[312654645,1706138150198,-500.0,0.00050684,120]
[312654646,1706138150222,-500.0,0.00050684,120]
[312654647,1706138150247,-944.82,0.00050684,120]
[312654648,1706138150274,-500.0,0.00050684,120]
[312654649,1706138150300,-1084.21,0.00050684,120]
[312654650,1706138150325,-516.4,0.00050684,120]
[312654651,1706138150350,-500.0,0.00050684,120]
[312654652,1706138150376,-597.63,0.00050684,120]
[312654653,1706138150400,-500.0,0.00050684,120]
[312654654,1706138150426,-576.59,0.00050684,120]
[312654655,1706138150451,-500.0,0.00050684,120]
[312654656,1706138150475,-500.0,0.00050684,120]
[312654657,1706138150499,-500.0,0.00050684,120]
[312654658,1706138150523,-500.0,0.00050684,120]
[312654659,1706138150548,-500.0,0.00050684,120]
[312654660,1706138150572,-156.09872497,0.00050844,60]
[312654661,1706138150596,-500.0,0.00050958,60]
[312654662,1706138150620,-500.0,0.00050958,120]
[312654663,1706138150643,-400.27153062,0.00050958,120]
[312654664,1706138150668,-500.0,0.00050958,120]
[312654665,1706138150692,-500.0,0.00050958,120]
[312654666,1706138150716,-521.65,0.00050958,120]
[312654667,1706138150741,-1611.84,0.00050958,120]
[312654668,1706138150764,-500.0,0.00050958,120]
[312654669,1706138150787,-625.50983435,0.00050958,120]
[312654670,1706138150811,-500.0,0.00050958,120]
[312654671,1706138150834,-500.0,0.00050958,120]
[312654672,1706138150858,-500.0,0.00050958,120]
[312654673,1706138150882,-500.0,0.00050958,120]
[312654674,1706138150907,-500.0,0.00050958,120]
[312654675,1706138150931,-500.0,0.00050958,120]
[312654676,1706138150955,-500.0,0.00050958,120]
[312654677,1706138150980,-500.0,0.00050958,120]
[312654678,1706138151004,-560.55,0.00050958,120]
[312654679,1706138151028,-500.0,0.00050958,120]
[312654680,1706138151051,-500.0,0.00050958,120]
[312654681,1706138151078,-500.0,0.00050958,120]
[312654682,1706138151102,-500.0,0.00050958,120]
[312654683,1706138151126,-540.36573072,0.00050958,120]
[312654684,1706138151149,-500.0,0.00050958,120]
[312654685,1706138151173,-500.0,0.00050958,120]
[312654686,1706138151198,-500.0,0.00050958,120]
[312654687,1706138151228,-500.0,0.00050958,120]
[312654688,1706138151254,-821.7,0.00050958,120]
[312654689,1706138151361,-500.0,0.00050958,120]
[312654690,1706138151386,-542.1,0.00050958,120]
[312654691,1706138151410,-674.55,0.00050958,120]
[312654692,1706138151436,-500.0,0.00050958,120]
[312654693,1706138151462,-500.0,0.00050958,120]
[312654694,1706138151487,-500.0,0.00050958,120]
[312654695,1706138151513,-576.2,0.00050958,120]
[312654696,1706138151539,-500.0,0.00050958,120]
[312654697,1706138151565,-500.0,0.00050958,120]
[312654698,1706138151591,-250.33164714,0.00050958,120]
[312654699,1706138151616,-164.14309816,0.00050958,120]
[312654700,1706138151641,-500.0,0.00050958,120]
[312654701,1706138151666,-500.0,0.00050958,120]
[312654702,1706138151690,-500.0,0.00050958,120]
[312654703,1706138151716,-222.69143648,0.00050958,120]
[312654704,1706138151741,-708.29,0.00050958,120]
[312654705,1706138151766,-183.1776006,0.00050958,120]
[312654706,1706138151790,-500.0,0.00050958,120]
[312654707,1706138151814,-500.0,0.00050958,120]
[312654708,1706138151839,-500.0,0.00050958,120]
[312654709,1706138151865,-731.74,0.00050958,120]
[312654710,1706138151888,-500.0,0.00050958,120]
[312654711,1706138151912,-628.3,0.00050958,120]
[312654712,1706138151935,-278.96961683,0.00050958,120]
[312654713,1706138151960,-500.0,0.00050958,120]
[312654714,1706138151984,-500.0,0.00050958,120]
[312654715,1706138152009,-500.0,0.00050958,120]
[312654716,1706138152034,-504.96,0.00050958,120]
[312654717,1706138152057,-623.57,0.00050958,120]
[312654718,1706138152081,-500.0,0.00050958,120]
[312654719,1706138152105,-500.0,0.00050958,120]
[312654720,1706138152129,-500.0,0.00050958,120]
[312654721,1706138152153,-541.2,0.00050958,120]
[312654722,1706138152177,-500.0,0.00050958,120]
[312654723,1706138152202,-621.03,0.00050958,120]
[312654724,1706138152226,-500.0,0.00050958,120]
[312654725,1706138152251,-500.0,0.00050958,120]
[312654726,1706138152276,-519.59,0.00050958,120]
[312654727,1706138152300,-500.0,0.00050958,120]
[312654728,1706138152325,-150.0,0.00050958,120]
[312654729,1706138152350,-646.43,0.00050958,120]
[312654730,1706138152375,-500.0,0.00050958,120]
[312654731,1706138152399,-500.0,0.00050958,120]
[312654732,1706138152423,-500.0,0.00050958,120]
[312654733,1706138152448,-500.0,0.00050958,120]
[312654734,1706138152474,-500.0,0.00050958,120]
[312654735,1706138152498,-500.0,0.00050958,120]
[312654736,1706138152523,-593.16,0.00050958,120]
[312654737,1706138152548,-500.0,0.00050958,120]
[312654738,1706138152572,-500.0,0.00050958,120]
[312654739,1706138152596,-1350.89,0.00050958,120]
[312654740,1706138152621,-1635.66,0.00050958,120]
[312654741,1706138152646,-2252.64,0.00050958,120]
[312654742,1706138152670,-500.0,0.00050958,120]
[312654743,1706138152696,-500.0,0.00050958,120]
[312654744,1706138152723,-502.75,0.00050958,120]
[312654745,1706138152748,-840.87,0.00050958,120]
[312654746,1706138152773,-1320.33,0.00050958,120]
[312654747,1706138152799,-983.25,0.00050958,120]
[312654748,1706138152824,-500.0,0.00050958,120]
[312654749,1706138152922,-500.0,0.00050958,120]
[312654750,1706138152949,-3361.98,0.00050958,120]
[312654751,1706138152975,-500.0,0.00050958,120]
[312654752,1706138153000,-500.0,0.00050958,120]
[312654753,1706138153024,-500.0,0.00050958,120]
[312654754,1706138153049,-500.0,0.00050958,120]
[312654755,1706138153072,-500.0,0.00050958,120]
[312654756,1706138153200,-933.63,0.00050958,120]
[312654757,1706138153227,-500.0,0.00050958,120]
[312654758,1706138153252,-500.0,0.00050958,120]
[312654759,1706138153279,-500.0,0.00050958,120]
[312654760,1706138153303,-569.81,0.00050958,120]
[312654761,1706138153328,-519.09,0.00050958,120]
[312654762,1706138153354,-771.42,0.00050958,120]
[312654763,1706138153378,-500.0,0.00050958,120]
[312654764,1706138153402,-500.0,0.00050958,120]
[312654765,1706138153427,-500.0,0.00050958,60]
[312654766,1706138153454,-500.0,0.00050958,120]
[312654767,1706138153479,-597.33,0.00050958,120]
[312654768,1706138153503,-500.0,0.00050958,120]
[312654769,1706138153527,-470.72343933,0.00050958,120]
[312654770,1706138153553,-679.43,0.00050958,120]
[312654771,1706138153578,-500.0,0.00050958,120]
[312654772,1706138153602,-500.0,0.00050958,120]
[312654773,1706138153626,-500.0,0.00050958,120]
[312654774,1706138153650,-500.0,0.00050958,120]
[312654775,1706138153675,-500.0,0.00050958,120]
[312654776,1706138153699,-541.66,0.00050958,120]
[312654777,1706138153725,-500.0,0.00050958,120]
[312654778,1706138153750,-735.65,0.00050958,120]
[312654779,1706138153776,-554.29,0.00050958,120]
[312654780,1706138153800,-500.0,0.00050958,120]
[312654781,1706138153823,-500.0,0.00050958,120]
[312654782,1706138153848,-944.82,0.00050958,120]
[312654783,1706138153872,-500.0,0.00050958,120]
[312654784,1706138153897,-1084.21,0.00050958,120]
[312654785,1706138153921,-516.4,0.00050958,120]
[312654786,1706138153944,-500.0,0.00050958,120]
[312654787,1706138153969,-597.63,0.00050958,120]
[312654788,1706138153993,-500.0,0.00050958,120]
[312654789,1706138154018,-576.59,0.00050958,120]
[312654790,1706138154043,-500.0,0.00050958,120]
[312654791,1706138154067,-500.0,0.00050958,120]
[312654792,1706138154091,-500.0,0.00050958,120]
[312654793,1706138154115,-500.0,0.00050958,120]
[312654794,1706138154139,-500.0,0.00050958,120]
[312654795,1706138154163,-378697.80770625,0.00051,120]
[312654869,1706138996421,-154.86062544,0.00020722,4]
[312654906,1706139033623,-272.6306295,0.00020718,2]
[312654908,1706139033632,-213.48757656,0.00020718,2]
[312654909,1706139033642,-154.86062544,0.00020719,2]
[312654910,1706139033650,-194.77545608,0.00020719,2]
[312654911,1706139033662,-851.69439129,0.00020719,2]
[312654912,1706139033670,-678.88445844,0.0002072,2]
[312654913,1706139033680,-2560.74526579,0.0002072,2]
[312654914,1706139033691,-5569.61663622,0.0002072,2]
[312654915,1706139033700,-1267.12305076,0.00020721,2]
[312654916,1706139033710,-10543.28967509,0.00020721,2]
[312654917,1706139033718,-154.97435718,0.00020722,2]
[312654918,1706139033728,-244.18511034,0.00020722,2]
[312654919,1706139033737,-4815.22334348,0.00020722,2]
[312654920,1706139033746,-688.13841462,0.00020723,2]
[312654921,1706139033757,-158.74528164,0.00020723,2]
[312654922,1706139033767,-163.36062122,0.00020725,2]
[312654923,1706139033776,-3642.9,0.00020806,3]
[312654924,1706139033785,-3035.75,0.00020806,3]
[312654925,1706139033794,-7962.34091115,0.00020813,2]
[312654926,1706139033804,-19871.73595374,0.00020814,2]
[312654927,1706139033813,-1484.61502997,0.00020815,2]
[312654928,1706139033822,-4201.670661,0.00020831,2]
[312654929,1706139033832,-1161.65,0.00021842,2]